fUSD/lending_fUSD_20250522
["ID","MTS","AMOUNT","RATE_DAILY","PERIOD"]
[362056506,1747954237975,-923.38235268,0.00027909,5]
[362056508,1747954237985,-152.6,0.00027958,2]
[362056509,1747954237994,-319.88787737,0.00027995,2]
[362056511,1747954238003,-205.64423758,0.00028515,19]
[362056513,1747954238013,-151.32,0.00028516,2]
[362056515,1747954238022,-172.84,0.00028751,2]
[362056517,1747954238031,-162.95,0.00029,2]
[362056519,1747954238041,-152.6,0.00029328,2]
[362056521,1747954238050,-205.64423758,0.00029823,21]
[362056523,1747954238059,-307.38,0.0003,30]
[362056525,1747954238068,-206.0,0.00030071,2]
[362056527,1747954238078,-483.71,0.00030075,2]
[362056528,1747954238087,-153.6,0.00030137,80]
[362056531,1747954238097,-152.6,0.00030698,2]
[362056532,1747954238106,-319.88787737,0.00030776,2]
[362056535,1747954238116,-1000.0,0.0003086,2]
[362056537,1747954238126,-205.64423758,0.00031131,24]
[362056538,1747954238135,-353.3,0.00031233,2]
[362056540,1747954238144,-247.01,0.00031233,2]
[362056542,1747954238153,-150.0,0.00031233,2]
[362056544,1747954238163,-170.08,0.00031233,2]
[362056546,1747954238173,-150.36,0.00031233,2]
[362056549,1747954238182,-150.7,0.00031233,2]
[362056550,1747954238192,-150.0,0.00031233,2]
[362056552,1747954238201,-150.0,0.00031233,2]
[362056554,1747954238211,-150.0,0.00031233,2]
[362056556,1747954238220,-170.01,0.00031233,2]
[362056558,1747954238229,-150.36,0.00031233,2]
[362056560,1747954238239,-150.0,0.00031233,2]
[362056562,1747954238248,-150.36,0.00031233,2]
[362056564,1747954238257,-150.0,0.00031233,2]
[362056566,1747954238267,-150.36,0.00031233,2]
[362056568,1747954238276,-150.0,0.00031233,2]
[362056570,1747954238286,-453.31,0.00031233,2]
[362056572,1747954238296,-150.0,0.00031233,2]
[362056574,1747954238305,-150.27,0.00031233,2]
[362056576,1747954238315,-453.31,0.00031233,2]
[362056578,1747954238324,-150.0,0.00031233,2]
[362056580,1747954238333,-287.07,0.00031233,2]
[362056581,1747954238342,-453.31,0.00031233,2]
[362056583,1747954238352,-453.31,0.00031233,2]
[362056585,1747954238361,-150.0,0.00031233,2]
[362056588,1747954238371,-207.4,0.00031905,2]
[362056589,1747954238381,-453.31,0.00032055,2]
[362056591,1747954238391,-150.0,0.00032055,2]
[362056593,1747954238401,-453.31,0.00032055,2]
[362056595,1747954238410,-453.31,0.00032055,2]
[362056597,1747954238420,-453.31,0.00032055,2]
[362056599,1747954238430,-150.0,0.00032055,2]
[362056601,1747954238442,-453.31,0.00032055,2]
[362056603,1747954238451,-150.0,0.00032055,2]
[362056605,1747954238460,-150.0,0.00032055,2]
[362056607,1747954238470,-453.31,0.00032055,2]
[362056609,1747954238480,-453.31,0.00032055,2]
[362056611,1747954238489,-453.31,0.00032055,2]
[362056613,1747954238499,-453.31,0.00032055,2]
[362056615,1747954238509,-453.31,0.00032055,2]
[362056617,1747954238519,-453.31,0.00032055,2]
[362056619,1747954238530,-453.31,0.00032055,2]
[362056621,1747954238542,-150.0,0.00032055,2]
[362056623,1747954238553,-453.31,0.00032055,2]
[362056625,1747954238563,-150.0,0.00032055,2]
[362056627,1747954238573,-150.16,0.00032055,2]
[362056629,1747954238583,-152.6,0.00032068,2]
[362056631,1747954238593,-483.71,0.00032338,2]
[362056632,1747954238603,-206.691041,0.00032388,4]
[362056633,1747954238614,-205.64423758,0.00032438,26]
[362056634,1747954238625,-700.0,0.000326,11]
[362056635,1747954238635,-221.84180069,0.00032647,30]
[362056636,1747954238645,-1500.0,0.000327,11]
[362056637,1747954238655,-2500.0,0.00032766,2]
[362056638,1747954238664,-230.3323,0.00032766,2]
[362056639,1747954238674,-597.0447615,0.00032773,29]
[362056640,1747954238684,-966.38968033,0.00032773,2]
[362056641,1747954238697,-2257.0041268,0.00032773,2]
[362056642,1747954238707,-3258.3153,0.00032776,2]
[362056643,1747954238717,-5370.5143732,0.00032776,2]
[362056644,1747954238729,-1274.48,0.00032776,2]
[362056645,1747954238741,-2132.88126401,0.00032776,2]
[362056646,1747954238751,-167.93245932,0.00032776,2]
[362056647,1747954238761,-490.61703667,0.00032797,2]
[362056648,1747954238773,-818.38296333,0.00032797,2]
[362056649,1747954238784,-978.847,0.00032797,2]
[362056650,1747954238794,-630.0,0.00032797,2]
[362056651,1747954238804,-799.0,0.00032797,2]
[362056652,1747954238813,-270.53373067,0.000328,11]
[362056653,1747954238826,-1929.46626933,0.000328,11]
[362056654,1747954238836,-500.0,0.00032865,2]
[362056655,1747954238846,-500.0,0.00032865,2]
[362056656,1747954238856,-500.0,0.00032865,2]
[362056657,1747954238865,-156.13373067,0.00032865,2]
[362056658,1747954238877,-343.86626933,0.00032865,2]
[362056659,1747954238887,-500.0,0.00032865,2]
[362056660,1747954238896,-500.0,0.00032865,2]
[362056661,1747954238906,-500.0,0.00032865,2]
[362056662,1747954238916,-500.0,0.00032865,2]
[362056663,1747954238925,-500.0,0.00032865,2]
[362056664,1747954238935,-261.6585828,0.00032865,2]
[362056665,1747954238947,-500.0,0.00032865,2]
[362056666,1747954238959,-500.0,0.00032865,2]
[362056667,1747954238969,-500.0,0.00032865,2]
[362056668,1747954238979,-500.0,0.00032865,2]
[362056669,1747954238989,-500.0,0.00032865,2]
[362056670,1747954239000,-500.0,0.00032865,2]
[362056671,1747954239010,-500.0,0.00032865,2]
[362056672,1747954239020,-500.0,0.00032865,2]
[362056673,1747954239031,-500.0,0.00032865,2]
[362056674,1747954239041,-386.37514789,0.00032866,2]
[362056675,1747954239054,-4176.3314625,0.00032866,2]
[362056676,1747954239071,-375.11531255,0.00032866,2]
[362056711,1747954240666,-1965.44249882,0.00032866,2]
[362056716,1747954240704,-39029.054,0.00032866,2]
[362056738,1747954242941,-289.42229683,0.00023256,2]
[362056739,1747954242951,-428.15861606,0.00032055,2]
[362056810,1747954245756,-25.15138394,0.00032055,2]
[362056811,1747954245766,-333.72137723,0.000328,2]
[362056812,1747954245776,-159.34723882,0.00032866,2]
[362056813,1747954245788,-1006.1975998,0.00032866,2]
[362056814,1747954245800,-805.49851855,0.00032866,2]
[362056815,1747954245998,-2406.84841981,0.00032866,2]
[362056816,1747954651470,500.0,0.0001653,2]
[362056817,1747954686291,500.0,0.0001653,2]
[362056819,1747955136120,-841.41242716,0.000278,5]
[362056820,1747955150096,-511.13660301,0.000278,5]
[362056822,1747955222313,226.49,0.00013699,2]
[362056823,1747955229194,-226.49,0.00020187,2]
[362056824,1747955229217,-226.49,0.00026676,2]
[362056825,1747955229240,-1307.81582519,0.000277,5]
[362056826,1747955238093,-431.28850509,0.00030136,2]
[362056827,1747955243083,-146.57149491,0.00030136,2]
[362056828,1747955243107,-250.0,0.00030136,2]
[362056829,1747955243131,-153.6,0.00030137,80]
[362056830,1747955243152,-1000.0,0.00031225,2]
[362056831,1747955243178,-207.0,0.00031346,2]
[362056832,1747955243201,-1142.88103,0.00031492,2]
[362056833,1747955243224,-207.4,0.00031651,2]
[362056834,1747955243245,-110.615274,0.00031651,2]
[362056843,1747955412112,101236.39710752,0.000274,120]
[362056879,1747955432229,-417.49656767,0.000316,30]
[362056880,1747955432240,-203.61583268,0.000316,30]
[362056881,1747955432250,-429.05617024,0.00031651,2]
[362056882,1747955432261,-659.53452593,0.00031651,2]
[362056883,1747955432270,-480.21,0.00031829,2]
[362056884,1747955432279,-480.21,0.00031838,2]
[362056885,1747955432289,-480.21,0.00031846,2]
[362056886,1747955432298,-480.21,0.00031854,2]
[362056887,1747955432307,-480.21,0.00031863,2]
[362056888,1747955432316,-480.21,0.00031871,2]
[362056889,1747955432326,-480.21,0.0003188,2]
[362056890,1747955432335,-480.21,0.00031888,2]
[362056891,1747955432345,-480.21,0.00031896,2]
[362056892,1747955432355,-480.21,0.00031905,2]
[362056893,1747955432364,-480.21,0.00031913,2]
[362056894,1747955432373,-1600.0,0.00031919,3]
[362056895,1747955432382,-160.5,0.00031919,2]
[362056896,1747955432391,-272.07665136,0.00031921,2]
[362056897,1747955432403,-208.13334864,0.00031921,2]
[362056898,1747955432412,-480.21,0.0003193,2]
[362056899,1747955432421,-400.0,0.00031935,2]
[362056900,1747955432431,-165.37,0.00031937,30]
[362056901,1747955432440,-480.21,0.00031938,2]
[362056902,1747955432450,-480.21,0.00031947,2]
[362056903,1747955432459,-150.0,0.0003195,7]
[362056904,1747955432471,-480.21,0.00031955,2]
[362056905,1747955432480,-480.21,0.00031963,2]
[362056906,1747955432490,-480.21,0.00031972,2]
[362056907,1747955432500,-155.38,0.00031977,120]
[362056908,1747955432509,-406.58883614,0.0003198,2]
[362056909,1747955432525,-73.62116386,0.0003198,2]
[362056910,1747955432535,-480.21,0.00031989,2]
[362056911,1747955432545,-900.0,0.00032,33]
[362056912,1747955432554,-399.76050498,0.00032055,2]
[362056920,1747955437835,-337.0,0.00031929,3]
[362056921,1747955437846,-405.15949502,0.00032055,2]
[362056922,1747955437856,-249.553519,0.00032369,4]
[362056923,1747955437866,-577.86,0.000324,2]
[362056924,1747955437876,-1037.78461,0.0003254,2]
[362056925,1747955437887,-600.0,0.000326,11]
[362056926,1747955437900,-200.0,0.00032603,2]
[362056927,1747955437911,-864.05076374,0.00032628,2]
[362056928,1747955437923,-151.8,0.00032666,2]
[362056929,1747955438030,-76.81061824,0.000327,11]
[362056930,1747955438049,-1123.18938176,0.000327,11]
[362056931,1747955438059,-589.84433429,0.00032755,29]
[362056932,1747955438068,-282.7789479,0.00032756,6]
[362056933,1747955438077,-3468.47713299,0.00032765,2]
[362056934,1747955438092,-1414.48647876,0.00032765,2]
[362056935,1747955438104,-5046.09734155,0.00032765,2]
[362056936,1747955438113,-157.61419708,0.00032765,15]
[362056937,1747955438122,-823.50930875,0.00032765,2]
[362056952,1747955440098,-176.49069125,0.00032765,2]
[362056953,1747955440107,-177.3621,0.00032765,2]
[362056954,1747955440117,-500.0,0.00032766,2]
[362056955,1747955440126,-949.81078433,0.00032776,2]
[362056956,1747955440138,-1401.6,0.00032776,2]
[362056957,1747955440206,-5715.12740809,0.00032776,2]
[362056958,1747955440317,-411.0,0.00032776,2]
[362056959,1747955440328,-982.71999126,0.00032776,2]
[362056963,1747955443016,-169.38199646,0.00032755,2]
[362056964,1747955443026,-24186.01871632,0.00032776,2]
[362056965,1747955443037,-609.2429,0.00032776,2]
[362056966,1747955443048,-226.9465,0.00032776,2]
[362056967,1747955443059,-1900.0,0.000328,11]
[362056968,1747955443068,-251.35,0.00032845,2]
[362056969,1747955443078,-152.23173304,0.00032854,2]
[362056971,1747955443087,-156.0965147,0.00032854,2]
[362056972,1747955443097,-154.12633076,0.00032854,2]
[362056973,1747955443106,-357.5274899,0.00032854,2]
[362056974,1747955443116,-622.89656352,0.00032854,2]
[362056975,1747955443126,-303.0345973,0.00032854,2]
[362056976,1747955443135,-500.0,0.00032854,2]
[362056977,1747955443144,-529.07317587,0.00032854,2]
[362056978,1747955443154,-238.9335604,0.00032854,11]
[362056979,1747955443165,-50006.23211145,0.00032854,11]
[362056980,1747955443178,-2329.74680814,0.00032854,11]
[362056981,1747955443190,-129321.38555914,0.00032854,11]
[362056982,1747955443215,-237580.88266884,0.00032854,11]
[362057004,1747955445930,-51905.20079498,0.00032854,11]
[362057005,1747955446050,-12795.46002071,0.00032854,11]
[362057006,1747955446080,-12938.59051781,0.00032854,11]
[362057007,1747955446091,-11603.2720481,0.00032854,11]
[362057008,1747955446192,-340.85218645,0.00032854,11]
[362057009,1747955467588,207.862085,7.945e-05,2]
[362057011,1747955962247,250.0,0.00015,2]
[362057012,1747956330129,-405.497125,0.00016915,2]
[362057013,1747956330152,-142.63364075,0.00017,2]
[362057015,1747956352989,192.51,0.00013699,2]
[362057016,1747956406250,250.52059,0.000165,2]
[362057017,1747956434114,-150.0,0.00016999,2]
[362057018,1747956434140,-500.0,0.00016999,2]
[362057019,1747956434168,-463.98957547,0.00016999,2]
[362057021,1747956447097,-36.01042453,0.00016999,2]
[362057022,1747956447124,-165.05651139,0.00016999,2]
[362057023,1747956447145,-122.96461235,0.00017,2]
[362057024,1747956453140,-34.4017469,0.00017,2]
[362057025,1747956453165,-2056.86184737,0.00017,2]
[362057026,1747956477824,60645.72680648,0.00012,2]
[362057027,1747956477854,34126.19583688,0.00012,2]
[362057037,1747956632353,-1200.0,0.00016999,2]
[362057038,1747956632364,-31236.86086934,0.00017,2]
[362057039,1747956632377,-25984.0158534,0.00017,2]
[362057040,1747956632401,-945.24598585,0.00017,2]
[362057093,1747956638139,-5336.5,0.00017,2]
[362057094,1747956638168,-1476.61709751,0.00017,2]
[362057279,1747956640281,-7093.55360197,0.00017,2]
[362057281,1747956640295,-8909.75963783,0.00017,2]
[362057283,1747956640310,-1899.86889289,0.00017,2]
[362057313,1747956640611,-1563.37069414,0.00017,2]
[362057315,1747956640623,-5316.65928183,0.00017,2]
[362057317,1747956640634,-396.88,0.00017,2]
[362057571,1747956643312,-55682.24710086,0.00017,2]
[362057574,1747956643333,-457807.52024451,0.00017,2]
[362057576,1747956643343,-4249.56746682,0.00018167,2]
[362057578,1747956643351,-169.38199645,0.00018267,2]
[362057580,1747956643361,-589.84433429,0.00018367,2]
[362057582,1747956643371,-209.77580638,0.000189,2]
[362057584,1747956643381,-4249.56746677,0.00020026,2]
[362057586,1747956643390,-192.51,0.00020187,2]
[362057588,1747956643399,-4249.56746677,0.00021885,2]
[362057590,1747956643408,-209.77580635,0.000219,6]
[362057592,1747956643418,-169.38199645,0.00022394,2]
[362057594,1747956643427,-4249.56746677,0.00023745,2]
[362057596,1747956643436,-143145.394392,0.000248,2]
[362057598,1747956643445,-209.77580635,0.000249,12]
[362057600,1747956643454,-3528.0,0.000249,5]
[362057602,1747956643463,-632.23,0.00025416,2]
[362057604,1747956643472,-165.37,0.00025472,30]
[362057606,1747956643481,-11928.782866,0.0002559,2]
[362057608,1747956643491,-4249.56746677,0.00025604,2]
[362057610,1747956643500,-9129.72893439,0.00026,2]
[362057612,1747956643509,-169.38199645,0.0002652,2]
[362057614,1747956643518,-192.51,0.00026676,2]
[362057616,1747956643528,-9129.72893437,0.00026966,2]
[362057618,1747956643537,-4249.56746677,0.00027463,2]
[362057620,1747956643546,-632.23,0.00027679,2]
[362057622,1747956643555,-209.77580635,0.000279,18]
[362057624,1747956643564,-11928.782866,0.00027922,2]
[362057626,1747956643576,-9129.72893437,0.00027932,2]
[362057628,1747956643586,-250.26924293,0.00028767,2]
[362057630,1747956643595,-9129.72893437,0.00028898,2]
[362057632,1747956643604,-4249.56746677,0.00029322,2]
[362057634,1747956643614,-9129.72893437,0.00029864,2]
[362057636,1747956643625,-632.23,0.00029943,2]
[362057638,1747956643635,-11928.782866,0.0002999,2]
[362057640,1747956643645,-1456.55533,0.0003,2]
[362057642,1747956643654,-169.38199645,0.00030647,2]
[362057644,1747956643663,-9129.72893437,0.0003083,2]
[362057646,1747956643672,-500.0,0.000309,11]
[362057647,1747956643682,-209.77580635,0.000309,23]
[362057649,1747956643691,-77038.6082951,0.0003099,2]
[362057652,1747956643714,-16301.41307017,0.0003099,2]
[362057689,1747956646187,-25947.80729473,0.0003099,2]
[362057690,1747956646197,-2781.8253428,0.00030999,2]
[362057691,1747956646379,-5306.9928,0.00030999,2]
[362057692,1747956646499,-780.99000001,0.00030999,2]
[362057694,1747956879072,150.0,0.00013021,2]
[362057696,1747957539091,-163.63,0.00013699,2]
[362057697,1747957539112,-200.0,0.00015068,2]
[362057698,1747957539132,-250.0,0.00015068,2]
[362057699,1747957539152,-90.929594,0.00020187,2]
[362057700,1747957542084,-72.700406,0.00020187,2]
[362057701,1747957542104,-1093.58900959,0.000252,5]
[362057702,1747957606088,-515.15387862,0.000249,5]
[362057703,1747957642082,-1978.0,0.000247,5]
[362057704,1747957642106,-250.0,0.00025938,2]
[362057705,1747957642132,-163.63,0.00026676,2]
[362057706,1747957642155,-250.0,0.0002772,2]
[362057707,1747957642178,-207.0,0.00029122,2]
[362057708,1747957642203,-250.070806,0.00029971,2]
[362057709,1747957642229,-5408.67205541,0.0003,2]
[362057710,1747957644134,-168.05488458,0.0003,2]
[362057711,1747957649091,-301.73401256,0.0003,2]
[362057712,1747957651101,-925.01466289,0.0003,2]
[362057713,1747957832212,-208.0,0.00029122,2]
[362057714,1747957832222,-437.68454909,0.0003,2]
[362057715,1747957832233,-10761.13993784,0.0003,2]
[362057716,1747957832249,-697.0,0.0003,2]
[362057717,1747957832266,-5859.49877438,0.0003,2]
[362057718,1747957832278,-100847.90491536,0.0003,2]
[362057719,1747957832289,-3909.0717062,0.0003,2]
[362057720,1747957832394,-456.40958204,0.0003,2]
[362057721,1747957832410,-1029.29698763,0.0003,2]
[362057722,1747957832433,-1169.65249604,0.0003,2]
[362057723,1747957832445,-432.32632991,0.0003,2]
[362057739,1747957838143,-966.84,0.0003,2]
[362057742,1747957838284,-2918.33725075,0.0003,2]
[362057743,1747957838296,-769.11999615,0.0003,2]
[362057744,1747957838324,-674.21531975,0.0003,2]
[362057935,1747957840436,-2625.71365455,0.0003,2]
[362057936,1747957840449,-759.8647285,0.0003,2]
[362057937,1747957840460,-399.005,0.0003,2]
[362057938,1747957840567,-602.7,0.0003,2]
[362057939,1747957840634,-4692.7587,0.0003,2]
[362057940,1747957840645,-10709.0,0.0003,2]
[362057949,1747957845827,-2235.22506642,0.0003,2]
[362057950,1747957846108,-32486.18949716,0.0003,2]
[362057953,1747957846119,-173.0,0.00030313,2]
[362057956,1747957846128,-864.82051,0.0003069,2]
[362057960,1747957846138,-6394.05,0.00030729,2]
[362057961,1747957846148,-165.37,0.00030746,30]
[362057962,1747957846157,-160.51,0.00030779,2]
[362057963,1747957846166,-150.0,0.00030779,7]
[362057964,1747957846175,-1200.0,0.00030838,2]
[362057965,1747957846184,-1556.09,0.00030839,2]
[362057966,1747957846194,-839.7,0.00030856,2]
[362057967,1747957846203,-150.0,0.00030893,2]
[362057968,1747957846212,-933.0,0.000309,2]
[362057969,1747957846222,-208.94949262,0.000309,23]
[362057970,1747957846231,-211.0,0.0003098,2]
[362057971,1747957846240,-155.0,0.00030999,2]
[362057972,1747957846249,-52726.98592758,0.00031,120]
[362057973,1747957846258,-1081.2969507,0.00031075,2]
[362057974,1747957846268,-22575.8109937,0.00031075,2]
[362057975,1747957846277,-1610.6,0.00031096,2]
[362057978,1747957846287,-458.34,0.00031096,2]
[362057981,1747957846296,-458.34,0.00031096,2]
[362057983,1747957846305,-186.94,0.00031096,2]
[362057985,1747957846315,-156.39469174,0.00031173,2]
[362057987,1747957846324,-207.4,0.00031173,2]
[362057988,1747957846334,-158.32,0.0003118,2]
[362057990,1747957846343,-1094.17,0.00031191,5]
[362057992,1747957846352,-265.77,0.00031191,2]
[362057994,1747957846362,-150.99,0.00031191,2]
[362057996,1747957846370,-299.99,0.00031191,12]
[362057998,1747957846380,-38608.16,0.00031191,10]
[362058000,1747957846389,-304.54,0.00031191,2]
[362058002,1747957846399,-1137.44,0.00031191,2]
[362058004,1747957846408,-297.6,0.00031191,2]
[362058006,1747957846417,-9999.99,0.00031191,2]
[362058008,1747957846426,-1774.34,0.00031191,2]
[362058010,1747957846435,-9999.99,0.00031191,2]
[362058012,1747957846443,-158.32,0.00031191,2]
[362058014,1747957846452,-805.3,0.000312,2]
[362058016,1747957846462,-158.32,0.00031203,2]
[362058018,1747957846472,-250.0,0.00031207,2]
[362058020,1747957846480,-158.32,0.00031214,2]
[362058022,1747957846490,-158.32,0.00031225,2]
[362058024,1747957846499,-158.32,0.00031236,2]
[362058026,1747957846508,-158.32,0.00031247,2]
[362058028,1747957846517,-158.32,0.00031258,2]
[362058030,1747957846526,-158.32,0.00031269,2]
[362058032,1747957846537,-158.32,0.0003128,2]
[362058034,1747957846546,-158.32,0.00031292,2]
[362058036,1747957846555,-158.32,0.00031303,2]
[362058037,1747957846564,-158.32,0.00031314,2]
[362058039,1747957846573,-158.32,0.00031325,2]
[362058041,1747957846582,-158.32,0.00031336,2]
[362058043,1747957846591,-155.38,0.0003135,120]
[362058045,1747957846600,-755.46,0.000314,2]
[362058047,1747957846609,-458.07,0.000314,2]
[362058049,1747957846618,-155.0,0.00031547,2]
[362058051,1747957846628,-1000.0,0.00031551,2]
[362058053,1747957846637,-805.62,0.000316,2]
[362058055,1747957846647,-458.34,0.000316,2]
[362058057,1747957846657,-805.62,0.000316,2]
[362058059,1747957846666,-805.62,0.000316,2]
[362058061,1747957846675,-458.34,0.000316,2]
[362058063,1747957846684,-275.423432,0.0003188,4]
[362058065,1747957846693,-200.0,0.0003188,4]
[362058067,1747957846702,-155.0,0.00032095,2]
[362058069,1747957846711,-632.23,0.00032207,2]
[362058071,1747957846721,-151.0,0.00032232,7]
[362058073,1747957846731,-151.0,0.00032232,7]
[362058075,1747957846750,-288.868609,0.00032232,7]
[362058076,1747957846762,-1274.87024004,0.00032503,2]
[362058078,1747957846771,-215.0738,0.00032542,2]
[362058080,1747957846780,-2000.0,0.000326,2]
[362058082,1747957846792,-500.0,0.000326,11]
[362058084,1747957846802,-200.0,0.00032603,2]
[362058086,1747957846811,-155.0,0.00032643,2]
[362058088,1747957846820,-1000.0,0.000327,11]
[362058090,1747957846830,-491.942,0.00032702,2]
[362058092,1747957846839,-169.38199645,0.00032756,2]
[362058094,1747957846848,-589.84433429,0.00032756,29]
[362058096,1747957846857,-157.61419702,0.00032765,15]
[362058098,1747957846866,-1274.87024003,0.00032769,2]
[362058100,1747957846876,-235.99551583,0.00032776,2]
[362058102,1747957846886,-1500.0,0.000328,11]
[362058104,1747957846895,-8271.6829323,0.00032845,2]
[362058106,1747957846904,-183892.5899999,0.00032845,2]
[362058108,1747957846914,-151.0,0.00032854,2]
[362058110,1747957846923,-151.0,0.00032854,2]
[362058112,1747957846932,-200.0,0.00032854,2]
[362058114,1747957846941,-175.18847005,0.00032855,2]
[362058116,1747957846952,-81685.1049738,0.00032855,2]
[362058118,1747957846961,-81685.1049738,0.00032856,2]
[362058120,1747957846970,-10210.6381217,0.00032856,2]
[362058122,1747957846979,-151.0,0.00032865,7]
[362058124,1747957846988,-151.0,0.00032865,7]
[362058126,1747957846998,-154.565249,0.00032865,7]
[362058127,1747957847007,-151.0,0.00032865,7]
[362058129,1747957847016,-151.0,0.00032865,7]
[362058131,1747957847025,-151.0,0.00032865,7]
[362058133,1747957847035,-160.330224,0.00032865,7]
[362058135,1747957847045,-151.0,0.00032865,7]
[362058137,1747957847055,-151.0,0.00032865,7]
[362058139,1747957847064,-151.0,0.00032865,7]
[362058141,1747957847073,-151.0,0.00032865,7]
[362058143,1747957847084,-150.0,0.00032865,2]
[362058145,1747957847094,-151.0,0.00032865,7]
[362058147,1747957847103,-151.0,0.00032865,7]
[362058149,1747957847113,-151.0,0.00032865,7]
[362058151,1747957847123,-151.0,0.00032865,7]
[362058153,1747957847133,-277.40594,0.00032865,7]
[362058155,1747957847142,-151.0,0.00032865,7]
[362058157,1747957847151,-277.40594,0.00032865,7]
[362058159,1747957847160,-151.0,0.00032865,7]
[362058161,1747957847169,-151.0,0.00032865,7]
[362058163,1747957847178,-151.0,0.00032865,7]
[362058164,1747957847187,-151.0,0.00032865,7]
[362058167,1747957847197,-151.0,0.00032865,7]
[362058168,1747957847206,-151.0,0.00032865,7]
[362058170,1747957847215,-151.0,0.00032865,7]
[362058172,1747957847225,-461.082451,0.00032865,7]
[362058174,1747957847235,-461.082451,0.00032865,7]
[362058176,1747957847245,-151.0,0.00032865,7]
[362058178,1747957847254,-151.0,0.00032865,7]
[362058180,1747957847263,-151.0,0.00032865,7]
[362058182,1747957847273,-91895.7430955,0.00032866,2]
[362058184,1747957847283,-206.2718,0.00032866,7]
[362058186,1747957847296,-152.721747,0.00032866,7]
[362058188,1747957847305,-260.64405714,0.00032866,7]
[362058190,1747957847314,-151.0,0.00032866,7]
[362058192,1747957847323,-151.0,0.00032866,7]
[362058194,1747957847333,-151.0,0.00032866,7]
[362058196,1747957847342,-151.0,0.00032866,7]
[362058198,1747957847351,-151.0,0.00032866,7]
[362058200,1747957847360,-151.0,0.00032866,7]
[362058202,1747957847370,-151.0,0.00032866,7]
[362058203,1747957847379,-151.0,0.00032866,7]
[362058205,1747957847388,-151.0,0.00032866,7]
[362058207,1747957847398,-151.0,0.00032866,7]
[362058209,1747957847407,-151.0,0.00032866,7]
[362058211,1747957847416,-151.0,0.00032866,7]
[362058213,1747957847425,-152.646049,0.00032866,7]
[362058215,1747957847434,-277.40594,0.00032866,7]
[362058217,1747957847443,-325.257317,0.00032866,7]
[362058219,1747957847453,-151.0,0.00032866,7]
[362058221,1747957847462,-277.40594,0.00032866,7]
[362058223,1747957847471,-325.257317,0.00032866,7]
[362058225,1747957847481,-151.0,0.00032866,7]
[362058227,1747957847491,-151.0,0.00032866,7]
[362058229,1747957847501,-151.0,0.00032866,7]
[362058231,1747957847510,-151.0,0.00032866,7]
[362058233,1747957847519,-151.0,0.00032866,7]
[362058235,1747957847529,-151.0,0.00032866,7]
[362058237,1747957847541,-490.111534,0.00032866,7]
[362058239,1747957847550,-490.111534,0.00032866,7]
[362058241,1747957847559,-151.0,0.00032866,7]
[362058243,1747957847568,-151.0,0.00032866,7]
[362058245,1747957847578,-461.082451,0.00032866,7]
[362058247,1747957847587,-151.0,0.00032866,7]
[362058249,1747957847596,-461.082451,0.00032866,7]
[362058251,1747957847606,-151.0,0.00032866,7]
[362058253,1747957847615,-224.32199,0.00032866,7]
[362058255,1747957847624,-151.0,0.00032866,7]
[362058257,1747957847633,-280.899461,0.00032866,7]
[362058259,1747957847642,-151.0,0.00032866,7]
[362058261,1747957847651,-280.899461,0.00032866,7]
[362058263,1747957847661,-151.0,0.00032866,7]